bitfinex/quotes_BTCUSD_20230405
["timestamp","ask_amount","ask_price","bid_price","bid_amount"]
[1680698548254,0.02506348,28464.0,28463.0,0.042293]
[1680698548466,0.02495239,28464.0,28463.0,0.042293]
[1680698549095,0.02495239,28464.0,28463.0,0.0286]
[1680698550827,0.04106539,28464.0,28463.0,0.0286]
[1680698552067,0.04106539,28464.0,28463.0,0.02606491]
[1680698553086,0.04106539,28464.0,28463.0,0.02357956]
[1680698553503,0.04106539,28464.0,28457.0,0.00018]
[1680698553672,0.14189681,28463.0,28456.0,0.15018]
[1680698554286,0.02325401,28465.0,28458.0,0.15]
[1680698554489,0.02325401,28465.0,28459.0,0.38051056]
[1680698554929,0.1484,28463.0,28459.0,0.0258]
[1680698555128,0.015374,28462.0,28459.0,0.0258]
[1680698555708,0.17165401,28465.0,28459.0,0.0258]
[1680698555921,0.015549,28464.0,28459.0,0.0258]
[1680698556696,0.019062,28464.0,28459.0,0.0258]
[1680698557334,0.16095881,28464.0,28459.0,0.0258]
[1680698557543,0.16386,28463.0,28459.0,0.0258]
[1680698557750,0.018875,28462.0,28459.0,0.0258]
[1680698558527,0.01526073,28462.0,28459.0,0.0258]
[1680698559075,0.01877373,28462.0,28459.0,0.0258]
[1680698560141,0.37348429,28462.0,28459.0,0.0258]
[1680698560350,0.014517,28461.0,28459.0,0.0258]
[1680698560552,0.01803,28461.0,28459.0,0.0258]
[1680698561227,0.014517,28461.0,28459.0,0.0258]
[1680698562290,0.01803,28461.0,28459.0,0.0258]
[1680698562732,0.0179447,28461.0,28459.0,0.0258]
[1680698562942,0.0144317,28461.0,28459.0,0.0258]
[1680698563554,0.32105526,28462.0,28459.0,0.0258]
[1680698563771,0.011007,28461.0,28459.0,0.0258]
[1680698564395,0.01452,28461.0,28459.0,0.0258]
[1680698564591,0.011007,28461.0,28459.0,0.0258]
[1680698565026,0.011007,28461.0,28460.0,0.0274]
[1680698565233,0.013753,28463.0,28460.0,0.0274]
[1680698565412,0.01024,28463.0,28460.0,0.0274]
[1680698566066,0.01024,28463.0,28457.0,0.00989039]
[1680698566268,0.01024,28463.0,28457.0,0.36460095]
[1680698566269,0.15564981,28463.0,28457.0,0.36460095]
[1680698566572,0.011007,28462.0,28457.0,0.36404095]
[1680698566778,0.01024,28461.0,28457.0,0.36404095]
[1680698567668,0.51036037,28461.0,28455.0,0.15018]
[1680698567882,0.51036037,28461.0,28454.0,0.15]
[1680698567883,0.61724759,28460.0,28459.0,0.0075]
[1680698568096,0.61724759,28460.0,28452.0,5.56018]
[1680698568097,0.010253,28459.0,28452.0,5.56018]
[1680698568311,0.46435678,28460.0,28452.0,0.00018]
[1680698568312,0.0815,28455.0,28452.0,0.00018]
[1680698568521,0.15589681,28454.0,28450.0,0.00018]
[1680698568738,0.14189681,28453.0,28450.0,0.00018]
[1680698568953,0.14189681,28453.0,28448.0,0.08416874]
[1680698569163,0.14189681,28452.0,28448.0,0.4386993]
[1680698569372,0.14189681,28452.0,28448.0,0.4388793]
[1680698569579,0.14189681,28452.0,28448.0,0.4386993]
[1680698569791,0.00015283,28454.0,28448.0,0.4386993]
[1680698570007,0.0815,28455.0,28449.0,0.35471056]
[1680698570219,0.08165283,28455.0,28449.0,0.35471056]
[1680698570429,0.014237,28454.0,28452.0,0.0075]
[1680698571060,0.010524,28453.0,28452.0,0.0075]
[1680698571489,0.02524265,28454.0,28453.0,0.04837]
[1680698571716,0.02325401,28465.0,28453.0,0.04837]
[1680698571717,0.00015283,28458.0,28453.0,0.86424067]
[1680698571946,0.02325401,28465.0,28457.0,0.0823]
[1680698572159,0.02340684,28465.0,28460.0,0.0823]
[1680698572384,0.02334401,28465.0,28461.0,0.40220456]
[1680698572603,0.02340684,28465.0,28462.0,0.131323]
[1680698572812,0.02325401,28465.0,28463.0,0.047117]
[1680698573238,0.02325401,28465.0,28464.0,0.04848]
[1680698573731,0.02325401,28465.0,28464.0,0.42069678]
[1680698573947,0.02325401,28465.0,28464.0,0.68515357]
[1680698574158,0.02325401,28465.0,28464.0,0.83515357]
[1680698574368,0.02325401,28465.0,28464.0,1.20385357]
[1680698574592,0.02325401,28465.0,28464.0,1.50385357]
[1680698575677,4.01e-06,28465.0,28464.0,1.73265678]
[1680698575884,4.01e-06,28465.0,28464.0,1.05169678]
[1680698576094,4.01e-06,28465.0,28464.0,0.94289056]
[1680698576320,4.01e-06,28465.0,28464.0,0.79289056]
[1680698576529,4.01e-06,28465.0,28464.0,0.35588]
[1680698576955,4.01e-06,28465.0,28464.0,0.05588]
[1680698578231,4.01e-06,28465.0,28464.0,0.0074]
[1680698579492,0.011461,28467.0,28464.0,0.0074]
[1680698579916,0.011461,28467.0,28461.0,3.61018]
[1680698579917,0.148,28465.0,28461.0,3.61018]
[1680698580169,0.01107,28464.0,28461.0,3.61018]
[1680698580809,0.14765565,28467.0,28461.0,3.61018]
[1680698581043,0.03937511,28463.0,28462.0,0.1319]
[1680698581678,0.03937511,28463.0,28462.0,0.53523356]
[1680698581855,0.02387001,28468.0,28462.0,0.53523356]
[1680698582090,0.02387001,28468.0,28464.0,0.047182]
[1680698582724,0.02387001,28468.0,28465.0,0.35471056]
[1680698582932,0.02387001,28468.0,28466.0,0.173476]
[1680698583152,0.02387001,28468.0,28467.0,0.049119]
[1680698583585,0.02387001,28468.0,28467.0,0.40382956]
[1680698583794,0.02387001,28468.0,28467.0,0.53460956]
[1680698586939,0.02387001,28468.0,28467.0,0.68270956]
[1680698589079,0.02387001,28468.0,28467.0,1.05990956]
[1680698589913,0.02376053,28468.0,28467.0,1.05972956]
[1680698590533,5.3e-07,28468.0,28467.0,1.05972956]
[1680698590743,5.3e-07,28468.0,28467.0,1.20782956]
[1680698590948,5.3e-07,28468.0,28467.0,1.87763578]
[1680698591680,0.0274391,28472.0,28467.0,1.87763578]
[1680698591681,0.0274391,28472.0,28468.0,0.046523]
[1680698591887,0.0274391,28472.0,28471.0,6.47131056]
[1680698592079,0.0274391,28472.0,28471.0,6.82784156]
[1680698592282,0.01,28474.0,28472.0,0.02743]
[1680698592517,0.01,28474.0,28473.0,0.92767556]
[1680698592781,0.01,28474.0,28473.0,0.048265]
[1680698593009,0.01,28474.0,28473.0,0.1327]
[1680698593661,0.01,28474.0,28473.0,0.182508]
[1680698594680,0.01,28474.0,28473.0,0.1327]
[1680698595127,0.01,28474.0,28468.0,0.00018]
[1680698595128,0.66523702,28474.0,28468.0,0.00018]
[1680698595341,0.66523702,28474.0,28461.0,6.8123]
[1680698595342,0.1481,28469.0,28462.0,0.00018]
[1680698595552,0.87427107,28473.0,28462.0,0.00018]
[1680698595553,0.1473,28467.0,28462.0,0.00018]
[1680698595757,0.14189681,28466.0,28462.0,0.00018]
[1680698596602,0.14540881,28466.0,28462.0,0.00012]
[1680698596810,0.003512,28466.0,28461.0,6.46018]
[1680698597014,0.14540881,28466.0,28461.0,6.46012]
[1680698597227,0.00015565,28467.0,28461.0,6.81489056]
[1680698597432,6e-05,28467.0,28462.0,0.20471056]
[1680698597638,0.00015565,28467.0,28462.0,0.20471056]
[1680698597846,0.00015565,28470.0,28463.0,0.15]
[1680698598061,0.14815565,28471.0,28463.0,0.50471056]
[1680698598277,0.00015565,28471.0,28464.0,0.35471056]
[1680698598481,0.00015565,28473.0,28464.0,0.35471056]
[1680698598685,0.01015565,28474.0,28467.0,0.0645]
[1680698598890,0.01015565,28474.0,28469.0,0.15]
[1680698599112,0.01,28474.0,28469.0,0.50471056]
[1680698599321,0.01,28474.0,28469.0,0.35471056]
[1680698600274,0.00988609,28474.0,28469.0,0.35489056]
[1680698600481,0.00988609,28474.0,28470.0,0.35471056]
[1680698600678,0.00988609,28474.0,28471.0,0.0614]
[1680698603663,0.00988609,28474.0,28471.0,0.41611056]
[1680698603860,0.00988609,28474.0,28472.0,0.15]
[1680698604067,0.01339809,28474.0,28472.0,0.15]
[1680698604299,0.01339809,28474.0,28471.0,0.41629056]
[1680698604300,0.00988609,28474.0,28471.0,0.41629056]
[1680698604506,0.00988609,28474.0,28471.0,0.41623056]
[1680698605139,0.00988609,28474.0,28472.0,0.35471056]
[1680698605410,0.00988609,28474.0,28472.0,0.87141056]
[1680698605625,0.00988609,28474.0,28473.0,0.0629]
[1680698605831,0.00988609,28474.0,28473.0,0.56761056]
[1680698607302,6.09e-06,28474.0,28473.0,1.24481056]
[1680698607526,6.09e-06,28474.0,28473.0,0.87629056]
[1680698607742,6.09e-06,28474.0,28473.0,1.24499056]
[1680698608624,6.09e-06,28474.0,28473.0,1.24481056]
[1680698608852,6.09e-06,28474.0,28473.0,0.87611056]
[1680698610347,6.09e-06,28474.0,28473.0,1.29518156]
[1680698610784,0.02375537,28484.0,28473.0,1.64766156]
[1680698610989,0.16565218,28484.0,28475.0,0.148]
[1680698611203,0.02375537,28484.0,28476.0,0.40463156]
[1680698611439,0.02375537,28484.0,28476.0,0.35489056]
[1680698611662,0.02375537,28484.0,28477.0,0.196932]
[1680698611901,0.02375537,28484.0,28478.0,0.35471056]
[1680698612116,0.02375537,28484.0,28478.0,0.35489056]
[1680698612336,0.02375537,28484.0,28479.0,0.196863]
[1680698612556,0.02375537,28484.0,28481.0,0.0639]
[1680698612770,0.02375537,28484.0,28482.0,0.40168256]
[1680698612988,0.04850524,28484.0,28483.0,0.047952]
[1680698613218,0.04850524,28484.0,28483.0,0.40284256]
[1680698613634,0.04850524,28484.0,28483.0,0.46864256]
[1680698614055,0.02375537,28484.0,28483.0,0.46864256]
[1680698614274,0.02375537,28484.0,28483.0,0.113932]
[1680698614521,0.02375537,28484.0,28483.0,0.46864256]
[1680698620269,0.02375537,28484.0,28483.0,0.113932]
[1680698621186,0.02387001,28485.0,28483.0,0.46846256]
[1680698621401,0.02387001,28485.0,28484.0,0.70045556]
[1680698621611,0.02387001,28485.0,28484.0,0.40045556]
[1680698621817,0.02387001,28485.0,28484.0,0.70057556]
[1680698622039,0.16576682,28485.0,28484.0,0.108525]
[1680698622268,0.16576682,28485.0,28484.0,0.0626]
[1680698622269,0.67809057,28485.0,28484.0,0.0626]
[1680698622473,0.68950622,28485.0,28478.0,0.00098265]
[1680698622719,0.148,28480.0,28478.0,0.00098265]
[1680698622950,0.01126,28479.0,28471.0,0.15018]
[1680698623185,0.148,28476.0,28471.0,0.00018]
[1680698623405,0.14189681,28475.0,28470.0,4.33018]
[1680698623621,0.14189681,28475.0,28473.0,0.0333]
[1680698623844,0.00015565,28477.0,28473.0,0.0333]
[1680698624069,0.148,28478.0,28473.0,0.0333]
[1680698624546,0.147,28476.0,28473.0,0.0333]
[1680698625005,0.010692,28475.0,28473.0,0.0333]
[1680698625212,0.147,28476.0,28473.0,0.0333]
[1680698625426,0.0264724,28477.0,28473.0,0.0333]
[1680698625663,0.02631675,28477.0,28473.0,0.0333]
[1680698625879,0.02631675,28477.0,28473.0,0.11941018]
[1680698626098,0.14815565,28478.0,28473.0,0.11941018]
[1680698626309,0.00015565,28478.0,28474.0,0.44082074]
[1680698626522,0.148,28482.0,28474.0,0.44082074]
[1680698626523,0.00015565,28481.0,28474.0,0.44082074]
[1680698626753,0.00015565,28481.0,28475.0,0.08611018]
[1680698626992,0.52,28484.0,28477.0,0.0302]
[1680698626993,0.00015565,28482.0,28477.0,0.0302]
[1680698627213,0.00015565,28482.0,28478.0,0.08611018]
[1680698627435,0.00015565,28482.0,28477.0,0.0302]
[1680698627651,0.14815565,28482.0,28476.0,0.35471056]
[1680698627873,0.64476302,28482.0,28480.0,0.0333]
[1680698628092,0.011435,28481.0,28480.0,0.0333]
[1680698628304,0.01159065,28481.0,28480.0,0.0333]
[1680698628772,0.00015565,28482.0,28480.0,0.0333]
[1680698629207,0.00997065,28483.0,28480.0,0.0333]
[1680698631596,0.00987358,28483.0,28480.0,0.0333]
[1680698631804,0.00971793,28483.0,28480.0,0.0333]
[1680698633270,0.5063253,28483.0,28480.0,0.0333]
[1680698633481,0.158952,28482.0,28480.0,0.0333]
[1680698633697,0.010202,28481.0,28480.0,0.0333]
[1680698634342,0.0097792,28481.0,28480.0,0.0333]
[1680698634999,0.0097792,28481.0,28480.0,0.03067063]
[1680698635000,0.03607295,28481.0,28480.0,0.03067063]
[1680698635166,0.03607295,28481.0,28475.0,0.00098396]
[1680698635393,0.16819056,28481.0,28476.0,0.15]
[1680698635556,0.02629375,28481.0,28476.0,0.15018]
[1680698635763,0.02629375,28481.0,28478.0,0.0293]
[1680698636979,0.011266,28480.0,28478.0,0.0293]
[1680698637405,0.010455,28480.0,28478.0,0.0293]
[1680698637815,0.010455,28480.0,28478.0,0.02671308]
[1680698638040,0.010276,28481.0,28478.0,0.02671308]
[1680698638610,0.00015565,28483.0,28478.0,0.02671308]
[1680698638837,0.02559378,28480.0,28478.0,0.11282326]
[1680698639042,0.02559378,28480.0,28478.0,0.02671308]
[1680698639893,0.010434,28483.0,28478.0,0.02420037]
[1680698640239,0.010434,28483.0,28478.0,0.11031055]
[1680698640384,0.010434,28483.0,28478.0,0.02420037]
[1680698640787,0.0249568,28482.0,28478.0,0.11031055]
[1680698640996,0.0249568,28482.0,28478.0,0.02420037]
[1680698641200,0.010847,28481.0,28478.0,0.02420037]
[1680698642045,0.14787798,28482.0,28478.0,0.02420037]
[1680698642599,0.011117,28481.0,28478.0,0.02420037]
[1680698643017,0.03602587,28481.0,28478.0,0.02420037]
[1680698643196,0.02490887,28481.0,28478.0,0.02420037]
[1680698643820,0.011066,28480.0,28478.0,0.02420037]
[1680698643991,0.02490887,28481.0,28478.0,0.02420037]
[1680698644849,0.52311,28484.0,28478.0,0.02420037]
[1680698645025,0.52311,28484.0,28478.0,0.11031055]
[1680698645026,0.011087,28483.0,28478.0,0.11031055]
[1680698645223,0.011087,28483.0,28478.0,0.02420037]
[1680698647333,0.093187,28483.0,28478.0,0.02420037]
[1680698647536,0.009644,28482.0,28478.0,0.02420037]
[1680698647721,0.0821,28483.0,28478.0,0.02420037]
[1680698649296,0.22399681,28483.0,28478.0,0.02420037]
[1680698649503,0.011008,28482.0,28478.0,0.02420037]
[1680698649727,0.0821,28483.0,28478.0,0.02420037]
[1680698649942,0.0249568,28482.0,28478.0,0.02420037]
[1680698650194,0.0249568,28482.0,28478.0,0.46502111]
[1680698650401,0.0249568,28482.0,28479.0,0.50471056]
[1680698650614,0.0249568,28482.0,28479.0,0.35489056]
[1680698651036,0.02387001,28485.0,28480.0,0.1888]
[1680698651243,0.02387001,28485.0,28480.0,0.12509018]
[1680698651716,0.013938,28484.0,28480.0,0.12509018]
[1680698651915,0.00351,28484.0,28480.0,0.03898]
[1680698652346,0.00339663,28484.0,28480.0,0.0388]
[1680698652558,0.01404363,28484.0,28480.0,0.0388]
[1680698652998,0.15594044,28484.0,28480.0,0.0388]
[1680698653209,0.092284,28483.0,28480.0,0.0388]
[1680698653422,0.014157,28482.0,28480.0,0.0388]
[1680698653637,0.010647,28481.0,28480.0,0.0388]
[1680698653847,0.00351,28482.0,28480.0,0.0388]
[1680698654061,0.00351,28483.0,28480.0,0.0388]
[1680698655561,0.02387001,28485.0,28480.0,0.0388]
[1680698655783,0.02387001,28485.0,28480.0,0.12491018]
[1680698655998,0.02387001,28485.0,28480.0,0.47962074]
[1680698656226,0.02387001,28485.0,28481.0,0.55020756]
[1680698656455,0.02402001,28485.0,28482.0,0.049423]
[1680698656744,0.02402001,28485.0,28481.0,0.50471056]
[1680698656957,0.02402001,28485.0,28481.0,0.50483056]
[1680698657380,0.02402001,28485.0,28483.0,0.0454]
[1680698659512,0.02402001,28485.0,28484.0,0.35471056]
[1680698659733,0.02402001,28485.0,28483.0,0.04552]
[1680698659948,0.02402001,28485.0,28480.0,0.23413679]
[1680698660169,0.02402001,28485.0,28484.0,0.0435]
[1680698660170,0.16591682,28485.0,28484.0,0.0435]
[1680698660378,0.02402001,28485.0,28484.0,0.0435]
[1680698661041,0.02753001,28485.0,28484.0,0.0435]
[1680698661266,0.02402001,28485.0,28484.0,0.0435]
[1680698662170,0.02753001,28485.0,28484.0,0.0435]
[1680698662628,0.02741342,28485.0,28484.0,0.0435]
[1680698663068,0.48938898,28485.0,28479.0,4.27018]
[1680698663315,0.0821,28482.0,28479.0,4.27018]
[1680698663533,0.010533,28481.0,28479.0,4.27018]
[1680698664214,0.14189681,28480.0,28479.0,4.27018]
[1680698664445,0.110089,28480.0,28479.0,0.00018]
[1680698664658,0.092534,28480.0,28475.0,0.00158736]
[1680698664880,0.23349381,28479.0,28475.0,0.00140736]
[1680698665105,0.010534,28478.0,28475.0,0.00140736]
[1680698665338,0.010534,28478.0,28475.0,0.00042264]
[1680698666461,0.0821,28477.0,28475.0,0.00042264]
[1680698666694,0.010197,28476.0,28475.0,0.00042264]
[1680698666908,0.085611,28477.0,28476.0,0.032603]
[1680698667170,0.093759,28477.0,28476.0,0.032603]
[1680698667805,0.62404956,28477.0,28475.0,0.00042264]
[1680698668023,0.0821,28476.0,28475.0,0.00042264]
[1680698668238,0.167711,28476.0,28475.0,0.00042264]
[1680698668671,0.1642,28476.0,28475.0,0.00042264]
[1680698668877,0.167711,28476.0,28475.0,0.00042264]
[1680698669093,0.52242156,28476.0,28475.0,0.00042264]
[1680698671297,0.53646756,28476.0,28475.0,0.00042264]
[1680698672176,1.05516756,28476.0,28475.0,0.00042264]
[1680698672467,1.67589781,28476.0,28475.0,0.00042264]
[1680698672686,2.09104119,28476.0,28469.0,0.00098256]
[1680698672904,0.33902684,28470.0,28469.0,0.00098256]
[1680698673127,1.14617021,28470.0,28469.0,0.00098256]
[1680698673350,1.0042734,28470.0,28464.0,0.00018]
[1680698673571,0.0817,28465.0,28463.0,0.08413679]
[1680698673799,0.22359681,28465.0,28463.0,0.00018]
[1680698674236,0.0817,28465.0,28463.0,0.00018]
[1680698674477,0.0814,28469.0,28463.0,0.00018]
[1680698674676,0.0814,28469.0,28464.0,0.08653282]
[1680698675118,0.003512,28469.0,28464.0,0.00012]
[1680698675345,0.0821,28467.0,28462.0,0.08413679]
[1680698675566,0.22399681,28467.0,28462.0,0.08512914]
[1680698675793,0.22399681,28467.0,28462.0,0.00117235]
[1680698676469,0.14189681,28467.0,28462.0,0.00117235]
[1680698676680,0.14205246,28467.0,28462.0,0.15017235]
[1680698677110,0.14205246,28467.0,28460.0,6.47781518]
[1680698677111,0.58167502,28467.0,28464.0,0.0202]
[1680698677322,0.008074,28466.0,28464.0,0.0202]
[1680698677551,0.092986,28466.0,28464.0,0.0202]
[1680698677775,0.09314165,28466.0,28464.0,0.0202]
[1680698678864,0.0821,28465.0,28460.0,6.3517]
[1680698679024,0.22399681,28465.0,28461.0,0.15]
[1680698679247,0.08225565,28465.0,28461.0,0.15]
[1680698679446,0.0821,28465.0,28461.0,0.15]
[1680698679650,0.0821,28465.0,28464.0,0.018]
[1680698679857,0.090079,28465.0,28461.0,0.15]
[1680698680003,0.86530737,28464.0,28461.0,0.018]
[1680698680227,0.0821,28463.0,28460.0,0.02182]
[1680698680455,0.007922,28462.0,28460.0,0.0217]
[1680698680911,0.011435,28462.0,28460.0,0.0217]
[1680698681457,0.007922,28462.0,28460.0,0.0217]
[1680698681643,0.002,28463.0,28460.0,0.0377]
[1680698681863,0.002,28463.0,28460.0,0.1877]
[1680698682292,0.002,28463.0,28461.0,0.0111]
[1680698682496,0.003513,28464.0,28461.0,0.0111]
[1680698682762,0.001,28462.0,28461.0,0.0111]
[1680698682985,0.003513,28463.0,28461.0,0.0111]
[1680698683201,0.35822356,28464.0,28461.0,0.0111]
[1680698683411,0.002,28463.0,28461.0,0.0111]
[1680698683621,0.35822356,28464.0,28461.0,0.0111]
[1680698683827,0.002,28462.0,28461.0,0.0271]
[1680698684273,0.35471056,28464.0,28461.0,0.0111]
[1680698684482,0.009896,28463.0,28461.0,0.0271]
[1680698685337,0.007896,28463.0,28461.0,0.0111]
[1680698685993,0.3684,28467.0,28461.0,0.0111]
[1680698686202,0.002,28462.0,28461.0,0.0271]
[1680698686628,0.003512,28466.0,28461.0,0.01054]
[1680698686835,0.002,28463.0,28461.0,0.11307282]
[1680698687042,0.00366765,28466.0,28461.0,0.01054]
[1680698687256,0.008014,28466.0,28461.0,0.01054]
[1680698687444,0.002,28462.0,28461.0,0.02654]
[1680698688281,0.00015565,28469.0,28461.0,0.02654]
[1680698688282,0.30366765,28469.0,28461.0,0.01054]
[1680698688499,0.002,28463.0,28462.0,0.08653282]
[1680698688689,0.00015565,28468.0,28461.0,0.01054]
[1680698688889,0.00763465,28468.0,28462.0,0.08653282]
[1680698689493,0.002,28463.0,28462.0,0.10253282]
[1680698689697,0.00763465,28468.0,28462.0,0.43681056]
[1680698689698,0.00015565,28468.0,28462.0,0.43681056]
[1680698689908,0.002,28468.0,28465.0,0.0926]
[1680698690107,0.00015565,28471.0,28465.0,0.17913282]
[1680698690279,0.35471056,28473.0,28466.0,0.08653282]
[1680698690486,0.007798,28472.0,28466.0,0.08653282]
[1680698690722,0.00015565,28472.0,28467.0,0.0821]
[1680698690878,0.00366665,28475.0,28469.0,0.011]
[1680698691075,0.35837721,28475.0,28470.0,0.08653282]
[1680698691281,0.00015565,28475.0,28473.0,0.0815]
[1680698691485,0.01225296,28482.0,28474.0,0.04875]
[1680698691486,0.00015565,28480.0,28474.0,0.04875]
[1680698691705,0.00015565,28480.0,28475.0,0.08653282]
[1680698691913,0.00366665,28480.0,28475.0,0.08653282]
[1680698692145,0.00015565,28480.0,28475.0,0.08653282]
[1680698692403,0.00015565,28480.0,28477.0,0.0102]
[1680698692865,0.00015565,28480.0,28477.0,0.09673282]
[1680698693340,9.66e-06,28483.0,28477.0,0.01032]
[1680698693571,0.35471056,28484.0,28478.0,0.08653282]
[1680698694291,0.50011737,28484.0,28477.0,0.01038]
[1680698694522,0.50011737,28484.0,28478.0,0.005]
[1680698694752,0.50011737,28484.0,28478.0,0.09153282]
[1680698694977,0.007682,28483.0,28478.0,0.09153282]
[1680698695219,0.007682,28483.0,28478.0,0.005]
[1680698695445,0.011192,28483.0,28478.0,0.005]
[1680698695940,0.011192,28483.0,28477.0,0.0102]
[1680698695941,0.007682,28483.0,28477.0,0.0102]
[1680698696166,0.14957881,28483.0,28477.0,0.0102]
[1680698696382,0.14540681,28483.0,28477.0,0.0102]
[1680698696612,0.008273,28482.0,28477.0,0.0102]
[1680698696837,0.011783,28482.0,28477.0,0.0102]
[1680698697077,0.49660737,28481.0,28477.0,0.0102]
[1680698697311,0.018553,28480.0,28478.0,0.005]
[1680698697544,0.011531,28480.0,28477.0,0.0102]
[1680698697771,0.011531,28480.0,28477.0,0.0212]
[1680698698231,0.011531,28480.0,28477.0,0.0102]
[1680698698454,0.36624156,28480.0,28478.0,0.005]
[1680698698674,0.36624156,28480.0,28477.0,0.0102]
[1680698698899,0.36624156,28480.0,28477.0,0.0212]
[1680698700052,0.43681056,28479.0,28477.0,0.0212]
[1680698700280,0.44032156,28479.0,28477.0,0.0212]
[1680698700520,0.44032156,28479.0,28477.0,0.0102]
[1680698700746,0.44032156,28479.0,28473.0,0.00018]
[1680698700996,0.14540781,28479.0,28473.0,0.00018]
[1680698701240,0.14540781,28479.0,28477.0,0.011]
[1680698701474,0.008029,28478.0,28476.0,0.0103]
[1680698701710,0.14672675,28485.0,28476.0,0.0103]
[1680698701711,0.3,28484.0,28476.0,0.0103]
[1680698701985,0.35822056,28484.0,28477.0,0.08653282]
[1680698702236,0.35471056,28484.0,28477.0,0.16863282]
[1680698702461,0.02390342,28485.0,28477.0,0.08653282]
[1680698702689,0.02390342,28485.0,28480.0,0.0104]
[1680698702944,0.007924,28484.0,28480.0,0.09693282]
[1680698703386,0.02390342,28485.0,28480.0,0.09693282]
[1680698703609,0.02378793,28485.0,28481.0,0.35471056]
[1680698703838,0.02378793,28485.0,28481.0,0.44124338]
[1680698704074,0.02378793,28485.0,28481.0,0.44142338]
[1680698704303,0.02378793,28485.0,28481.0,0.35489056]
[1680698704531,0.02378793,28485.0,28483.0,0.0133]
[1680698706428,0.02378793,28485.0,28483.0,0.0413]
[1680698706884,0.02378793,28485.0,28483.0,0.0133]
[1680698707117,0.02378793,28485.0,28483.0,0.0413]
[1680698707345,0.02378793,28485.0,28483.0,0.0133]
[1680698707568,0.02378793,28485.0,28483.0,0.0413]
[1680698707791,0.02378793,28485.0,28483.0,0.0133]
[1680698708026,0.02378793,28485.0,28483.0,0.0413]
[1680698709915,0.02378793,28485.0,28484.0,0.050756]
[1680698710120,0.02378793,28485.0,28483.0,0.01348]
[1680698710434,0.02378793,28485.0,28484.0,0.0142]
[1680698710638,0.00015,28485.0,28484.0,0.36891056]
[1680698710835,0.00015,28485.0,28484.0,0.42160556]
[1680698712358,0.00015,28485.0,28484.0,0.44960556]
[1680698713002,0.00015,28485.0,28484.0,0.094895]
[1680698713223,0.00015,28485.0,28484.0,0.44942556]
[1680698713459,0.01902001,28488.0,28484.0,0.44942556]
[1680698713671,0.01902001,28488.0,28484.0,0.39691056]
[1680698714107,0.01891696,28488.0,28484.0,0.39691056]
[1680698714320,0.01891696,28488.0,28484.0,0.21162462]
[1680698714536,0.01891696,28488.0,28486.0,0.0069]
[1680698715437,0.02091696,28488.0,28486.0,0.0069]
[1680698715853,0.01891696,28488.0,28486.0,0.0069]
[1680698716060,0.02091696,28488.0,28486.0,0.0179]
[1680698716266,0.02091696,28488.0,28486.0,0.0069]
[1680698716474,0.01891696,28488.0,28486.0,0.0069]
[1680698716686,0.02091696,28488.0,28486.0,0.0179]
[1680698717584,0.02091696,28488.0,28486.0,0.37261056]
[1680698717779,0.02091696,28488.0,28487.0,0.15]
[1680698718038,0.02091696,28488.0,28486.0,0.37261056]
[1680698719188,0.02091696,28488.0,28486.0,0.0179]
[1680698721094,0.02091696,28488.0,28486.0,0.37261056]
[1680698722146,0.02091696,28488.0,28486.0,0.0179]
[1680698724647,0.02080377,28488.0,28486.0,0.0179]
[1680698726194,0.02080377,28488.0,28486.0,0.37261056]
[1680698726375,0.02080377,28488.0,28487.0,0.048614]
[1680698726621,0.02080377,28488.0,28486.0,0.37261056]
[1680698726842,0.02080377,28488.0,28487.0,0.049166]
[1680698727057,0.02080377,28488.0,28486.0,0.37261056]
[1680698728149,0.02080377,28488.0,28486.0,0.0179]
[1680698728850,0.007716,28487.0,28486.0,0.0179]
[1680698729061,0.007716,28487.0,28479.0,4.4978]
[1680698729062,0.45330156,28487.0,28482.0,0.00018]
[1680698729279,0.0814,28483.0,28479.0,4.18018]
[1680698729496,0.15067381,28482.0,28479.0,4.18018]
[1680698729710,0.22329681,28482.0,28479.0,4.18018]
[1680698729926,0.23207381,28482.0,28479.0,4.18018]
[1680698730147,0.090177,28482.0,28479.0,4.18018]
[1680698730576,0.090177,28482.0,28479.0,4.18]
[1680698730992,0.0814,28482.0,28479.0,4.18]
[1680698731204,0.14189681,28481.0,28479.0,4.18]
[1680698731430,0.008778,28481.0,28479.0,0.00012]
[1680698731643,0.008778,28481.0,28472.0,0.30018]
[1680698731860,0.14189681,28480.0,28472.0,0.65489056]
[1680698732069,0.008778,28479.0,28473.0,0.201492]
[1680698732283,0.14189681,28478.0,28474.0,0.049059]
[1680698732519,0.008778,28478.0,28474.0,0.00018]
[1680698732792,0.008779,28477.0,28474.0,0.00012]
[1680698733035,0.008779,28476.0,28474.0,0.00018]
[1680698733255,0.008779,28476.0,28474.0,0.00012]
[1680698733482,0.008779,28476.0,28473.0,0.00018]
[1680698733696,0.008779,28476.0,28473.0,6e-05]
[1680698733912,0.008779,28476.0,28473.0,0.00012]
[1680698734340,0.011779,28476.0,28472.0,0.00018]
[1680698734552,0.008779,28476.0,28472.0,0.00018]
[1680698734772,0.0821,28478.0,28472.0,0.00018]
[1680698734773,0.35471056,28475.0,28472.0,0.00018]
[1680698734991,0.3633817,28475.0,28472.0,6e-05]
[1680698735205,0.36295914,28475.0,28471.0,0.00018]
[1680698735836,0.44465914,28475.0,28471.0,0.00018]
[1680698736053,0.0821,28473.0,28470.0,4.87012]
[1680698736272,0.0821,28473.0,28470.0,4.87]
[1680698736471,0.0439957,28474.0,28470.0,4.87]
[1680698736674,0.40748626,28474.0,28470.0,4.87]
[1680698736898,0.0438229,28472.0,28470.0,4.87]
[1680698737107,0.00010531,28473.0,28470.0,4.87]
[1680698737326,0.36359587,28474.0,28470.0,4.87]
[1680698737544,0.36659587,28474.0,28470.0,4.87]
[1680698737770,0.35481587,28474.0,28470.0,4.87]
[1680698737934,0.003,28473.0,28470.0,4.87]
[1680698738167,0.00010531,28476.0,28470.0,4.87]
[1680698738359,0.35481587,28478.0,28471.0,0.23653282]
[1680698738593,0.003,28474.0,28472.0,0.08653282]
[1680698738744,0.003,28474.0,28470.0,4.87]
[1680698738922,0.15367581,28474.0,28470.0,4.87]
[1680698739150,0.008779,28474.0,28470.0,4.87]
[1680698739578,0.49660737,28474.0,28470.0,4.87]